bitfinex-derivatives/quotes_BTCF0:USTF0_20250208
["timestamp","ask_amount","ask_price","bid_price","bid_amount"]
[1739028457864,0.2082072,96063.0,96053.0,0.3608]
[1739028458079,0.5690072,96063.0,96053.0,0.3608]
[1739028458265,0.5690072,96063.0,96054.0,0.0799314]
[1739028458464,0.2082419,96047.0,96046.0,0.2082429]
[1739028459271,0.2082419,96047.0,96046.0,0.22210411]
[1739028459961,0.2082419,96047.0,96046.0,0.01386121]
[1739028460167,0.2082507,96043.0,96041.0,0.0953]
[1739028461575,0.2092507,96043.0,96041.0,0.10907038]
[1739028461774,0.2102507,96043.0,96041.0,0.10907038]
[1739028463275,0.2102507,96043.0,96041.0,0.31732378]
[1739028466284,0.2102507,96043.0,96042.0,5.186e-05]
[1739028467283,0.2092507,96043.0,96042.0,5.186e-05]
[1739028467469,0.2102507,96043.0,96042.0,5.186e-05]
[1739028476986,0.15548466,96052.0,96042.0,5.186e-05]
[1739028477187,0.00071559,96059.0,96058.0,0.208218]
[1739028477692,0.00071559,96059.0,96052.0,0.091]
[1739028477693,0.2082016,96066.0,96059.0,0.2082149]
[1739028478194,0.2082016,96066.0,96060.0,0.2082124]
[1739028479996,0.00124002,96064.0,96060.0,0.2082124]
[1739028480397,0.00124002,96064.0,96063.0,0.2082072]
[1739028481697,0.00124002,96064.0,96063.0,0.2092072]
[1739028482208,0.20944502,96064.0,96063.0,0.001]
[1739028482409,0.20844502,96064.0,96063.0,0.001]
[1739028482594,0.20944502,96064.0,96063.0,0.001]
[1739028492306,0.27271142,96064.0,96063.0,0.001]
[1739028493111,0.06450642,96064.0,96063.0,0.001]
[1739028495608,0.00124002,96064.0,96063.0,0.001]
[1739028517032,0.00015611,96071.0,96063.0,0.001]
[1739028517235,0.00015611,96071.0,96070.0,0.208192]
[1739028518324,0.00315611,96071.0,96070.0,0.208192]
[1739028519035,0.01815611,96071.0,96070.0,0.208192]
[1739028522534,0.01815611,96071.0,96070.0,0.22229898]
[1739028528541,0.01815611,96071.0,96070.0,0.01410698]
[1739028528841,0.01815611,96071.0,96068.0,0.3608]
[1739028530128,0.01815611,96071.0,96068.0,0.37423201]
[1739028531532,0.01815611,96071.0,96069.0,0.2081942]
[1739028533839,0.12133637,96070.0,96069.0,0.2081942]
[1739028534937,0.13033637,96070.0,96069.0,0.2081942]
[1739028536735,0.13033637,96070.0,96068.0,0.01343201]
[1739028536929,0.13033637,96070.0,96067.0,0.3608]
[1739028537346,0.13933637,96070.0,96067.0,0.3608]
[1739028537841,0.13033637,96070.0,96067.0,0.3608]
[1739028538046,0.13933637,96070.0,96067.0,0.3608]
[1739028538447,0.13533637,96070.0,96067.0,0.37431039]
[1739028538646,0.13133637,96070.0,96067.0,0.37431039]
[1739028541251,0.01,96070.0,96069.0,4.249e-05]
[1739028543452,0.014,96070.0,96069.0,4.249e-05]
[1739028544146,0.009,96070.0,96069.0,4.249e-05]
[1739028544351,0.14722293,96070.0,96069.0,4.249e-05]
[1739028547263,0.0686378,96070.0,96069.0,4.249e-05]
[1739028549761,0.0686378,96070.0,96069.0,0.03264249]
[1739028550260,0.2081656,96083.0,96070.0,0.208192]
[1739028550460,0.2081656,96083.0,96070.0,0.27378499]
[1739028550852,0.12461274,96075.0,96070.0,0.27378499]
[1739028551052,0.12461274,96075.0,96070.0,0.208192]
[1739028552163,0.13361274,96075.0,96070.0,0.208192]
[1739028552765,0.3608,96071.0,96037.0,0.3608]
[1739028552951,0.2082462,96045.0,96039.0,0.00064]
[1739028553154,0.3608,96044.0,96029.0,0.37506835]
[1739028553356,0.3608,96044.0,96036.0,0.32138622]
[1739028554255,0.3608,96044.0,96043.0,0.25848054]
[1739028554663,0.3608,96044.0,96043.0,0.26748054]
[1739028554863,0.3608,96044.0,96043.0,0.25848054]
[1739028555171,0.3618,96044.0,96043.0,0.26748054]
[1739028555550,0.3618,96044.0,96043.0,0.018]
[1739028555756,0.3618,96044.0,96043.0,0.015]
[1739028555967,0.3932,96044.0,96043.0,0.015]
[1739028558469,0.5135,96044.0,96043.0,0.015]
[1739028559071,0.58750771,96044.0,96043.0,0.015]
[1739028562965,0.69958154,96044.0,96043.0,0.015]
[1739028563368,0.69958154,96044.0,96026.0,0.01200188]
[1739028563369,0.70166391,96044.0,96026.0,0.01200188]
[1739028563678,0.2082852,96027.0,96026.0,0.01200188]
[1739028564473,0.2082852,96027.0,96026.0,0.01800188]
[1739028564877,0.2082852,96027.0,96026.0,0.02300188]
[1739028565374,0.5690852,96027.0,96026.0,0.02300188]
[1739028565975,0.5690852,96027.0,96026.0,0.01700188]
[1739028566279,0.5700852,96027.0,96026.0,0.01700188]
[1739028567265,0.6903852,96027.0,96026.0,0.01700188]
[1739028568167,0.2082982,96021.0,96020.0,0.1]
[1739028568475,0.3285982,96021.0,96020.0,0.1]
[1739028569875,0.3295982,96021.0,96020.0,0.1]
[1739028570580,0.3305982,96021.0,96020.0,0.1]
[1739028572583,0.6913982,96021.0,96020.0,0.1]
[1739028574184,0.6903982,96021.0,96020.0,0.1]
[1739028574384,0.6913982,96021.0,96020.0,0.1]
[1739028574680,0.6903982,96021.0,96020.0,0.1]
[1739028579291,0.6903982,96021.0,96020.0,0.11299049]
[1739028583287,0.74107074,96021.0,96020.0,0.11299049]
[1739028586898,0.81795796,96021.0,96020.0,0.11299049]
[1739028589803,0.74107074,96021.0,96020.0,0.11299049]
[1739028590599,0.2083215,96011.0,96007.0,0.2083271]
[1739028591598,0.2093215,96011.0,96004.0,0.11159809]
[1739028591799,0.2103215,96011.0,96008.0,0.2083258]
[1739028592297,0.002,96011.0,96004.0,0.11159809]
[1739028592500,0.2083312,96006.0,96004.0,0.11159809]
[1739028593701,0.2083312,96006.0,96005.0,0.0623]
[1739028594396,0.2103312,96006.0,96005.0,0.0623]
[1739028595396,0.2093312,96006.0,96005.0,0.0623]
[1739028595702,0.2103312,96006.0,96005.0,0.0623]
[1739028598009,0.34045141,96006.0,96005.0,0.0623]
[1739028604906,0.43625095,96006.0,96005.0,0.0623]
[1739028609108,0.0620854,96001.0,96000.0,24.17763824]
[1739028609298,1.15796871,96001.0,96000.0,4.75543935]
[1739028609609,0.1728,95986.0,95974.0,3e-08]
[1739028609812,0.2084111,95969.0,95968.0,0.07157205]
[1739028610012,0.2792111,95969.0,95968.0,0.07157205]
[1739028610714,0.2084111,95969.0,95968.0,0.07157205]
[1739028611013,0.2792911,95969.0,95968.0,0.07157205]
[1739028611212,0.25268,95969.0,95953.0,0.31674614]
[1739028611411,0.7216,95954.0,95953.0,0.29169605]
[1739028611611,0.3608,95962.0,95953.0,0.29159605]
[1739028611908,0.00208418,95961.0,95953.0,0.29159605]
[1739028614012,0.01108418,95961.0,95953.0,0.29159605]
[1739028614215,0.01108418,95961.0,95945.0,0.2084613]
[1739028614507,0.02008418,95961.0,95945.0,0.2084613]
[1739028615106,0.1203,95960.0,95945.0,0.2084613]
[1739028615305,0.00208422,95959.0,95945.0,0.2084613]
[1739028615507,0.00208422,95959.0,95946.0,0.2084597]
[1739028616404,0.09746324,95956.0,95950.0,0.3608]
[1739028616602,0.09746324,95956.0,95950.0,0.5692518]
[1739028616807,0.09746324,95956.0,95950.0,0.3608]
[1739028617009,0.00208431,95955.0,95951.0,0.2084491]
[1739028618415,0.13220452,95955.0,95951.0,0.2084491]
[1739028618610,0.13220452,95955.0,95952.0,0.2084459]
[1739028618810,0.14120452,95955.0,95952.0,0.2084459]
[1739028619721,0.15020452,95955.0,95950.0,0.3608]
[1739028619907,0.15020452,95955.0,95954.0,0.2084437]
[1739028621320,0.15016419,95955.0,95950.0,0.35013607]
[1739028622417,0.15016419,95955.0,95954.0,0.2084437]
[1739028622623,0.15849419,95955.0,95954.0,0.2084437]
[1739028623518,0.14949419,95955.0,95954.0,0.9795637]
[1739028623828,0.02837398,95955.0,95954.0,0.66655903]
[1739028624323,0.02837398,95955.0,95954.0,0.87500273]
[1739028625826,0.02837398,95955.0,95954.0,0.94660273]
[1739028626020,0.07904652,95955.0,95954.0,0.94660273]
[1739028627336,0.07004652,95955.0,95954.0,0.94660273]
[1739028627529,0.07904652,95955.0,95954.0,0.94660273]
[1739028628531,0.43984652,95955.0,95954.0,0.66655903]
[1739028630330,0.56014652,95955.0,95954.0,0.66655903]
[1739028630629,0.56014652,95955.0,95930.0,0.0307]
[1739028630630,0.3608,95895.0,95850.0,0.2086688]
[1739028630836,0.3608,95851.0,95841.0,0.2086877]
[1739028631022,0.3608,95842.0,95835.0,0.01044011]
[1739028631223,0.3608,95836.0,95835.0,0.01044011]
[1739028631920,0.5695003,95836.0,95829.0,0.07384]
[1739028632120,0.5695003,95836.0,95818.0,0.44403417]
[1739028632121,0.3608,95831.0,95818.0,0.43308619]
[1739028632328,0.3608,95822.0,95818.0,0.43308619]
[1739028632528,0.3608,95822.0,95818.0,0.28505649]
[1739028632831,0.2087363,95820.0,95818.0,0.28505649]
[1739028633233,0.09746324,95812.0,95802.0,0.49929113]
[1739028633528,0.3608,95803.0,95802.0,0.49929113]
[1739028634427,0.3608,95803.0,95802.0,0.57653113]
[1739028635130,0.3608,95803.0,95802.0,0.07724]
[1739028635627,0.3608,95803.0,95802.0,0.08]
[1739028635933,0.3608,95803.0,95801.0,0.17912949]
[1739028636132,0.3608,95802.0,95800.0,0.094073]
[1739028636333,0.3608,95802.0,95784.0,0.01044011]
[1739028636531,0.3608,95802.0,95789.0,0.2088019]
[1739028636835,0.00208766,95801.0,95787.0,0.08044]
[1739028637033,0.00208766,95801.0,95799.0,0.2087791]
[1739028638129,0.00208766,95801.0,95800.0,0.08092]
[1739028638931,0.3159,95802.0,95801.0,0.2087765]
[1739028639227,0.0664,95802.0,95801.0,1.77169656]
[1739028639430,0.2393791,95803.0,95801.0,0.2087765]
[1739028639628,0.2393791,95803.0,95802.0,1.56292006]
[1739028640128,0.37124269,95832.0,95827.0,0.2087195]
[1739028640321,0.37124269,95832.0,95822.0,0.08088]
[1739028641224,0.01044269,95832.0,95829.0,0.2086961]
[1739028641531,0.11477,95832.0,95829.0,0.2086961]
[1739028642036,0.11477,95832.0,95830.0,0.2086914]
[1739028642221,0.11477,95832.0,95831.0,0.77204]
[1739028642423,0.07304,95832.0,95831.0,0.77204]
[1739028642635,0.07304,95832.0,95831.0,2.69576006]
[1739028642931,0.00015656,95837.0,95832.0,1.56292006]
[1739028643233,0.15529397,95842.0,95841.0,0.2086691]
[1739028643529,0.04173,95846.0,95831.0,0.91507006]
[1739028643830,0.15529397,95841.0,95836.0,0.08156]
[1739028644426,0.15529397,95841.0,95837.0,0.2086775]
[1739028645532,0.04476,95842.0,95840.0,0.2086709]
[1739028645722,0.04476,95842.0,95841.0,0.3608]
[1739028645922,0.05973,95846.0,95841.0,0.3608]
[1739028646130,0.05073,95846.0,95842.0,0.2086666]
[1739028646332,0.04173,95846.0,95841.0,0.3608]
[1739028646722,0.009,95842.0,95841.0,0.3608]
[1739028647826,0.10455,95846.0,95842.0,0.001]
[1739028648027,0.00734,95842.0,95841.0,0.3608]
[1739028648630,0.01634,95842.0,95841.0,0.3608]
[1739028649337,0.00734,95842.0,95841.0,0.3608]
[1739028649531,0.01634,95842.0,95841.0,0.3608]
[1739028650232,0.02534,95842.0,95841.0,1.92472006]
[1739028650626,0.01634,95842.0,95841.0,0.3608]
[1739028650830,0.02534,95842.0,95841.0,0.001]
[1739028651527,0.01634,95842.0,95841.0,0.001]
[1739028651744,0.04402,95842.0,95841.0,0.001]
[1739028653730,0.04402,95842.0,95841.0,1.56392006]
[1739028654330,0.04402,95842.0,95841.0,1.56292006]
[1739028654529,0.04402,95842.0,95841.0,1.56392006]
[1739028654928,0.03502,95842.0,95841.0,1.56292006]
[1739028655242,0.03502,95842.0,95841.0,1.56392006]
[1739028655243,0.04402,95842.0,95841.0,1.56392006]
[1739028655442,0.03502,95842.0,95841.0,1.56392006]
[1739028655645,0.03502,95842.0,95841.0,1.56292006]
[1739028655838,0.04963,95842.0,95841.0,1.56292006]
[1739028656436,0.04173,95845.0,95844.0,0.2086623]
[1739028656641,0.04173,95845.0,95844.0,4.77158236]
[1739028656845,0.04482,95846.0,95844.0,1.77158236]
[1739028657036,0.00015656,95848.0,95846.0,0.2086579]
[1739028657238,0.00015656,95848.0,95847.0,1.56292006]
[1739028657545,0.36387917,95880.0,95867.0,0.2086105]
[1739028657736,0.36387917,95880.0,95868.0,0.08148]
[1739028657931,0.40251,95879.0,95868.0,0.08148]
[1739028658244,0.41105764,95879.0,95868.0,1.64440006]
[1739028658450,0.3608,95869.0,95868.0,0.08148]
[1739028659131,0.3608,95869.0,95868.0,0.08248]
[1739028659833,0.3698,95869.0,95868.0,0.08348]
[1739028660634,0.3788,95869.0,95868.0,0.08348]
[1739028662339,0.3788,95869.0,95868.0,3.12840006]
[1739028662535,0.018,95869.0,95868.0,3.12840006]
[1739028664945,0.06875319,95869.0,95868.0,3.12840006]
[1739028665147,0.06875319,95869.0,95868.0,6.12840006]
[1739028668151,0.06875319,95869.0,95868.0,3.16150006]
[1739028669447,0.1856166,95875.0,95874.0,0.208597]
[1739028669650,0.1856166,95875.0,95874.0,2.54343706]
[1739028670454,0.1856166,95875.0,95874.0,0.980517]
[1739028670639,0.18770264,95875.0,95874.0,1.061597]
[1739028671138,0.19670264,95875.0,95874.0,1.062597]
[1739028671750,0.20570264,95875.0,95874.0,1.063597]
[1739028672849,0.11829641,95875.0,95874.0,1.063357]
[1739028676949,0.02008604,95875.0,95874.0,1.063357]
[1739028677346,0.02008604,95875.0,95874.0,1.063037]
[1739028680052,0.23859254,95875.0,95874.0,1.063037]
[1739028680244,0.23859254,95875.0,95874.0,0.8437658]
[1739028681151,0.23859254,95875.0,95874.0,0.85420591]
[1739028681454,0.23859254,95875.0,95874.0,0.98228291]
[1739028681648,0.23859254,95875.0,95874.0,0.74952102]
[1739028683757,0.23859254,95875.0,95874.0,0.74940102]
[1739028684960,0.23859254,95875.0,95874.0,2.31232108]
[1739028685849,0.23859254,95875.0,95874.0,2.32077322]
[1739028686547,0.23859254,95875.0,95874.0,2.31232108]
[1739028686748,0.28934106,95875.0,95874.0,2.31232108]
[1739028687552,0.28934106,95875.0,95874.0,5.31232108]
[1739028689661,0.28934106,95875.0,95874.0,2.31232108]
[1739028692266,0.0321,95899.0,95888.0,0.2085665]
[1739028692456,0.39826845,95889.0,95888.0,2.13228656]
[1739028692955,0.40660845,95889.0,95888.0,2.13228656]
[1739028693362,0.41560845,95889.0,95888.0,2.13328656]
[1739028693858,0.42460845,95889.0,95888.0,2.13428656]
[1739028694065,0.42460845,95889.0,95888.0,2.21448656]
[1739028694760,0.00091,95894.0,95893.0,0.2085556]
[1739028694958,0.00015646,95898.0,95893.0,1.56292006]
[1739028695263,0.00015646,95898.0,95896.0,1.77146916]
[1739028695967,0.00849646,95898.0,95896.0,4.77146916]
[1739028696152,0.00849646,95898.0,95896.0,1.77146916]
[1739028696357,0.00849646,95898.0,95897.0,1.56292006]
[1739028697358,0.00849646,95898.0,95897.0,1.56392006]
[1739028698251,0.00849646,95898.0,95897.0,1.56492006]
[1739028698456,0.00849646,95898.0,95897.0,1.92572006]
[1739028698655,0.1,95900.0,95898.0,0.2085448]
[1739028698853,0.1,95900.0,95899.0,1.56292006]
[1739028699468,0.04119165,95914.0,95913.0,0.2085122]
[1739028699664,0.0349852,95914.0,95913.0,1.85143226]
[1739028700864,0.0020852,95914.0,95913.0,1.85243226]
[1739028701069,0.0020852,95914.0,95913.0,1.85343226]
[1739028703670,0.0020852,95914.0,95913.0,4.85343226]
[1739028704471,0.00112,95917.0,95916.0,0.2085056]
[1739028704769,0.21724911,95924.0,95916.0,1.56292006]
[1739028704969,0.21724911,95924.0,95922.0,1.56292006]
[1739028705573,0.22557911,95924.0,95922.0,1.56292006]
[1739028706568,0.22557911,95924.0,95922.0,1.56492006]
[1739028707471,0.07005136,95923.0,95922.0,1.56492006]
[1739028710372,0.2032041,95923.0,95922.0,1.56492006]
[1739028711763,0.2032041,95923.0,95922.0,4.56492006]
[1739028712570,0.2032041,95923.0,95922.0,4.64372006]
[1739028713059,0.2032041,95923.0,95922.0,1.64372006]
[1739028713764,0.12077897,95923.0,95922.0,1.64372006]
[1739028713966,1e-08,95926.0,95925.0,1.77140616]
[1739028714165,0.21724911,95927.0,95925.0,1.77140616]
[1739028714366,0.21724911,95927.0,95926.0,2.00232006]
[1739028715071,0.21724911,95927.0,95926.0,0.4394]
[1739028715277,0.21724911,95927.0,95926.0,5.00232006]
[1739028715472,0.21724911,95927.0,95926.0,4.64152006]
[1739028716070,0.21724911,95927.0,95926.0,4.64252006]
[1739028716679,0.21724911,95927.0,95926.0,4.64324006]
[1739028718272,0.00735,95928.0,95927.0,0.2084817]
[1739028718467,0.00735,95928.0,95927.0,1.77140176]
[1739028718664,0.00735,95928.0,95927.0,4.77140176]
[1739028719069,0.00735,95928.0,95927.0,4.84952176]
[1739028719674,0.00735,95928.0,95927.0,4.85152176]
[1739028720377,0.00735,95928.0,95927.0,5.21232176]
[1739028721066,0.04188,95932.0,95927.0,2.00384006]
[1739028721270,0.04188,95932.0,95931.0,1.77139306]
[1739028721766,0.0326,95941.0,95931.0,1.92372006]
[1739028721966,0.0326,95941.0,95940.0,2.13217356]
[1739028722382,0.21724911,95947.0,95946.0,0.2084404]
[1739028722676,0.39290001,95956.0,95953.0,0.2084252]
[1739028722677,0.00080001,95956.0,95953.0,0.2084252]
[1739028722876,0.3608,95966.0,95953.0,1.88167006]
[1739028723078,0.3608,95966.0,95961.0,1.77132796]
[1739028723268,0.3608,95966.0,95961.0,2.54276796]
[1739028723469,0.3608,95966.0,95961.0,2.55320807]
[1739028723779,0.0331,95974.0,95969.0,0.2083905]
[1739028723975,1e-08,95970.0,95969.0,2.21059056]
[1739028724673,0.04167,95975.0,95974.0,0.2083796]
[1739028724873,0.04167,95975.0,95974.0,1.77129966]
[1739028725269,0.09754777,95980.0,95976.0,0.2083733]
[1739028725574,0.09754777,95980.0,95979.0,1.56292006]
[1739028726377,0.04167,95984.0,95979.0,1.56292006]
[1739028726578,0.04167,95984.0,95982.0,1.56292006]
[1739028727473,0.3608,95985.0,95982.0,1.56292006]
[1739028727878,0.3608,95985.0,95983.0,0.07844]
[1739028728279,0.3608,95985.0,95983.0,1.64136006]
[1739028728981,0.3608,95985.0,95983.0,1.56292006]
[1739028729276,0.3608,95985.0,95984.0,0.07832]
[1739028730680,0.3608,95985.0,95984.0,0.07932]
[1739028731477,0.3608,95985.0,95984.0,0.08032]
[1739028731677,0.3608,95985.0,95984.0,0.002]
[1739028731871,0.57124065,95985.0,95983.0,0.07812]
[1739028732181,0.00208368,95984.0,95983.0,0.07812]
[1739028733077,0.00208368,95984.0,95983.0,0.07928]
[1739028733868,0.00208368,95984.0,95983.0,0.08028]
[1739028735081,0.00208368,95984.0,95983.0,0.08012]
[1739028736274,0.00208368,95984.0,95983.0,0.002]
[1739028738784,0.00208368,95984.0,95965.0,0.00015629]
[1739028738986,0.3608,95968.0,95966.0,0.078]
[1739028739283,0.0939,95967.0,95966.0,0.078]
[1739028739474,0.03,95967.0,95966.0,0.078]
[1739028739875,0.03,95967.0,95966.0,1.64092006]
[1739028741181,0.3908,95967.0,95966.0,0.07988]
[1739028741984,0.3908,95967.0,95966.0,0.002]
[1739028742186,0.3908,95967.0,95966.0,0.07976]
[1739028742381,0.3908,95967.0,95966.0,0.07972]
[1739028742574,0.3908,95967.0,95966.0,0.002]
[1739028742889,0.3908,95967.0,95966.0,0.07968]
[1739028743288,0.3908,95967.0,95966.0,0.002]
[1739028743587,0.3908,95967.0,95966.0,0.08]
[1739028744582,0.2084127,95959.0,95954.0,0.77112]
[1739028744783,0.3608,95955.0,95954.0,0.77112]
[1739028745982,0.3608,95955.0,95954.0,0.77212]
[1739028746181,0.3608,95955.0,95954.0,0.77312]
[1739028746792,0.3608,95955.0,95954.0,0.77112]
[1739028747091,0.3608,95955.0,95954.0,0.77312]
[1739028748997,0.36288431,95955.0,95954.0,0.77312]
[1739028750997,0.37172938,95955.0,95954.0,0.77312]
[1739028754502,0.00208431,95955.0,95954.0,2.54446316]
[1739028757301,0.04376431,95955.0,95954.0,2.54446316]
[1739028759106,0.04376431,95955.0,95954.0,5.54446316]
[1739028759403,0.04376431,95955.0,95954.0,5.62246316]
[1739028765321,0.04376431,95955.0,95954.0,2.33604006]
[1739028765510,0.40456431,95955.0,95954.0,0.48779055]
[1739028765712,0.40456431,95955.0,95954.0,0.47972146]
[1739028766513,0.41342707,95955.0,95954.0,0.47972146]
[1739028769922,0.49002887,95955.0,95954.0,0.47972146]
[1739028770124,0.61032887,95955.0,95954.0,0.15318153]
[1739028770323,0.61032887,95955.0,95916.0,0.7712]
[1739028770622,0.3608,95917.0,95916.0,0.7712]
[1739028771823,0.3698,95917.0,95916.0,0.7722]
[1739028772129,0.4115,95917.0,95916.0,0.7722]
[1739028772731,0.4205,95917.0,95916.0,0.7732]
[1739028773227,0.4971018,95917.0,95916.0,0.7732]
[1739028773524,0.4881018,95917.0,95916.0,0.7732]
[1739028773729,0.4921018,95917.0,95916.0,0.7732]
[1739028774225,0.4931018,95917.0,95916.0,2.33612006]
[1739028774619,0.4931018,95917.0,95916.0,2.33512006]
[1739028774927,0.4931018,95917.0,95916.0,2.33612006]
[1739028775126,0.4911018,95917.0,95916.0,0.7732]
[1739028775324,0.4911018,95917.0,95916.0,2.33612006]
[1739028775522,0.4911018,95917.0,95916.0,5.33612006]
[1739028775917,0.4841018,95917.0,95916.0,5.33612006]
[1739028776121,0.4911018,95917.0,95916.0,5.33612006]
[1739028777223,0.4145,95917.0,95916.0,5.33612006]
[1739028777731,0.4135,95917.0,95916.0,5.33612006]
[1739028778134,0.4095,95917.0,95916.0,5.33512006]
[1739028778431,0.4135,95917.0,95916.0,5.33612006]
[1739028779229,0.4095,95917.0,95916.0,5.33512006]
[1739028779430,0.4135,95917.0,95916.0,5.33612006]
[1739028779732,0.4065,95917.0,95916.0,5.32512006]
[1739028780029,0.4135,95917.0,95916.0,5.32612006]
[1739028780931,0.4095,95917.0,95916.0,5.32512006]
[1739028781231,0.4135,95917.0,95916.0,5.32612006]
[1739028781427,0.4135,95917.0,95916.0,0.7632]
[1739028781627,0.41158513,95917.0,95916.0,0.7622]
[1739028781834,0.41558513,95917.0,95916.0,0.7632]
[1739028782223,0.41558513,95917.0,95916.0,0.7622]
[1739028782529,0.41558513,95917.0,95916.0,0.7632]
[1739028783929,0.41158513,95917.0,95916.0,0.7622]
[1739028784129,0.41558513,95917.0,95916.0,0.7632]
[1739028784630,0.40858513,95917.0,95916.0,0.7612]
[1739028784932,0.41558513,95917.0,95916.0,0.7632]
[1739028785427,0.40858513,95917.0,95916.0,0.7622]
[1739028785635,0.41558513,95917.0,95916.0,0.7632]
[1739028785934,0.41558513,95917.0,95916.0,0.9717057]
[1739028786120,0.41558513,95917.0,95916.0,0.7632]
[1739028787538,0.41158513,95917.0,95916.0,0.7622]
[1739028787837,0.41158513,95917.0,95916.0,0.7632]
[1739028787838,0.41558513,95917.0,95916.0,0.7632]
[1739028789736,0.40858513,95917.0,95916.0,0.7622]
[1739028790039,0.41558513,95917.0,95916.0,0.7632]
[1739028790738,0.41158513,95917.0,95916.0,0.7622]
[1739028790940,0.41558513,95917.0,95916.0,0.7632]
[1739028793439,0.1733,95907.0,95868.0,0.0006]
[1739028793734,0.3608,95869.0,95852.0,0.26480774]
[1739028793928,0.3608,95856.0,95852.0,0.26480774]
[1739028794130,0.3608,95856.0,95852.0,0.24919905]
[1739028794425,0.3608,95856.0,95855.0,1.56292006]
[1739028794835,0.3608,95856.0,95855.0,4.56292006]
[1739028795034,0.40252,95856.0,95855.0,1.56292006]
[1739028795438,0.40352,95856.0,95855.0,1.56292006]
[1739028796046,0.40252,95856.0,95855.0,1.56292006]
[1739028796341,0.40352,95856.0,95855.0,1.57192006]
[1739028796637,0.40352,95856.0,95855.0,4.57192006]
[1739028796838,0.40352,95856.0,95855.0,4.57892006]
[1739028800038,0.40352,95856.0,95855.0,1.57892006]
[1739028800634,0.40352,95856.0,95855.0,0.016]
[1739028801842,0.40352,95856.0,95855.0,1.57892006]
[1739028802138,0.40352,95856.0,95844.0,0.00071648]
[1739028802344,0.40352,95856.0,95808.0,0.77184]
[1739028802345,0.3608,95845.0,95808.0,0.77184]
[1739028802529,0.50784369,95856.0,95808.0,0.77184]
[1739028802530,0.3608,95821.0,95808.0,0.77184]
[1739028802735,0.00208724,95820.0,95809.0,0.08004]
[1739028803144,0.00208724,95820.0,95819.0,0.85322006]
[1739028803350,0.2087209,95818.0,95814.0,0.85322006]
[1739028803541,0.3608,95815.0,95814.0,0.85322006]
[1739028803736,0.3608,95815.0,95810.0,0.00015648]
[1739028803935,0.3608,95815.0,95814.0,0.85322006]
[1739028804647,0.3608,95815.0,95814.0,0.85422006]
[1739028805146,0.40254,95815.0,95814.0,0.85422006]
[1739028806438,0.40254,95815.0,95814.0,3.85422006]
[1739028806848,0.04174,95815.0,95814.0,0.85422006]
[1739028807062,0.00208731,95817.0,95814.0,1.21502006]
[1739028807341,0.00015648,95829.0,95819.0,0.2087154]
[1739028807534,0.00015648,95829.0,95828.0,0.85322006]
[1739028807740,0.00015648,95829.0,95828.0,0.93546006]
[1739028808847,0.00015648,95829.0,95828.0,1.25476006]
[1739028809745,0.00915648,95829.0,95828.0,1.25576006]
[1739028809950,0.01815648,95829.0,95828.0,4.25576006]
[1739028811242,0.01815648,95829.0,95828.0,3.93646006]
[1739028811447,0.01815648,95829.0,95828.0,3.85422006]
[1739028813053,0.01815648,95829.0,95828.0,0.85422006]
[1739028815762,0.01815648,95829.0,95828.0,3.85422006]
[1739028816855,0.01815648,95829.0,95828.0,0.85422006]
[1739028819854,0.09758779,95840.0,95839.0,0.2086732]
[1739028820056,4.002e-05,95840.0,95839.0,1.14405326]
[1739028821059,0.00904002,95840.0,95839.0,1.14405326]
[1739028822366,0.01304002,95840.0,95839.0,1.14505326]
[1739028822551,0.01304002,95840.0,95839.0,4.14505326]
[1739028824158,0.02977,95845.0,95839.0,3.93638006]
[1739028824361,0.02977,95845.0,95843.0,1.06188456]
[1739028824668,0.09770425,95849.0,95844.0,0.93474006]
[1739028824864,0.09770425,95849.0,95848.0,0.85322006]
[1739028825062,0.00015648,95849.0,95848.0,0.85322006]
[1739028826372,0.00915648,95849.0,95848.0,4.06287366]
[1739028826564,0.6496744,95849.0,95806.0,0.25019905]
[1739028826763,1.1035911,95831.0,95828.0,0.47747963]
[1739028827065,0.2086949,95829.0,95828.0,0.29728141]
[1739028827263,0.2086949,95829.0,95828.0,0.04298141]
[1739028828767,0.2086949,95829.0,95828.0,0.04398141]
[1739028829668,0.2176949,95829.0,95828.0,0.04498141]
[1739028829869,0.22887829,95829.0,95828.0,0.04498141]
[1739028830071,0.22887829,95829.0,95828.0,0.04398141]
[1739028830268,0.22987829,95829.0,95828.0,0.64810147]
[1739028830877,0.95147829,95829.0,95828.0,0.64810147]
[1739028834273,0.95147829,95829.0,95828.0,0.57626679]
[1739028834575,0.74278339,95829.0,95828.0,0.57626679]
[1739028834774,0.73368705,95829.0,95828.0,1.33086679]
[1739028835182,0.37288705,95829.0,95828.0,1.33086679]
[1739028838783,0.09754777,95840.0,95831.0,0.57626679]
[1739028838984,0.09754777,95840.0,95839.0,0.93706679]
[1739028839176,0.00953762,95843.0,95842.0,0.2086653]
[1739028839485,0.09770425,95849.0,95846.0,0.57626679]
[1739028839675,0.00015648,95849.0,95848.0,0.57626679]
[1739028839881,0.00015648,95849.0,95848.0,0.93706679]
[1739028840774,0.00015648,95849.0,95848.0,0.93806679]
[1739028841078,0.00115648,95849.0,95848.0,0.93806679]
[1739028841478,0.01055418,95849.0,95848.0,0.93806679]
[1739028841781,0.01955418,95849.0,95848.0,0.93906679]
[1739028842379,0.01955418,95849.0,95848.0,1.09166679]
[1739028843689,0.01955418,95849.0,95847.0,0.2086556]
[1739028843690,0.1733,95848.0,95819.0,0.002]
[1739028843985,0.3608,95829.0,95828.0,0.45606099]
[1739028844185,0.3608,95829.0,95828.0,0.15756099]
[1739028844777,0.36288705,95829.0,95828.0,0.15756099]
[1739028844978,0.36288705,95829.0,95828.0,0.15856099]
[1739028845588,0.00208705,95829.0,95828.0,0.73482778]
[1739028846084,0.00208705,95829.0,95828.0,0.94352488]
[1739028846388,0.00308705,95829.0,95828.0,0.94252488]
[1739028846594,0.00508705,95829.0,95828.0,0.73482778]
[1739028847990,0.01408705,95829.0,95828.0,0.73582778]
[1739028848190,0.01108705,95829.0,95828.0,0.73482778]
[1739028848384,0.01408705,95829.0,95828.0,3.73582778]
[1739028848591,0.00508705,95829.0,95828.0,3.73482778]
[1739028848792,0.01408705,95829.0,95828.0,3.73582778]
[1739028849788,0.01308705,95829.0,95828.0,3.73582778]
[1739028850987,0.01108705,95829.0,95828.0,3.73582778]
[1739028851187,0.01308705,95829.0,95828.0,3.73582778]
[1739028852594,0.01108705,95829.0,95828.0,3.73482778]
[1739028852892,0.01308705,95829.0,95828.0,0.73582778]
[1739028853497,0.01304247,95829.0,95828.0,0.73582778]